bitfinex-derivatives/quotes_BNBF0:USTF0_20250406
["timestamp","ask_amount","ask_price","bid_price","bid_amount"]
[1743924012785,0.29412013,591.99,591.15,0.28676823]
[1743924013791,0.29412013,591.99,591.14,0.623]
[1743924014686,0.693,592.01,591.14,0.623]
[1743924015490,0.693,592.01,591.15,0.28674654]
[1743924015891,0.693,592.01,591.14,0.623]
[1743924016091,0.98707539,592.01,591.14,0.623]
[1743924017691,0.693,592.01,591.14,0.623]
[1743924018895,0.693,592.01,591.15,0.28662883]
[1743924020092,0.693,592.01,591.15,0.35262883]
[1743924020394,0.693,592.01,591.16,0.28662883]
[1743924021990,0.29407042,592.03,591.16,0.28662883]
[1743924022393,0.29407042,592.03,591.17,0.28662711]
[1743924022593,0.29407042,592.03,591.18,0.28662711]
[1743924022793,0.29407042,592.03,591.16,0.28662711]
[1743924023095,0.29407042,592.03,591.17,0.28662711]
[1743924023299,0.29407042,592.03,591.16,0.28662711]
[1743924023695,0.751,592.05,591.16,0.28662711]
[1743924023895,0.751,592.05,591.15,0.066]
[1743924024091,0.751,592.05,591.16,0.28662687]
[1743924024497,0.751,592.05,591.16,0.79262687]
[1743924024796,0.751,592.05,591.17,0.28662687]
[1743924025002,0.29406297,592.04,591.17,0.28662687]
[1743924025697,0.29406297,592.04,591.16,0.506]
[1743924025894,0.29406297,592.04,591.17,0.28662809]
[1743924027201,0.29406297,592.04,591.16,0.506]
[1743924027499,0.29406297,592.04,591.17,0.28662664]
[1743924028894,0.29406297,592.04,591.18,0.28662697]
[1743924029101,0.29406297,592.04,591.17,0.28662697]
[1743924029400,0.29406297,592.04,591.18,0.28662697]
[1743924029600,0.29406297,592.04,591.17,0.28662697]
[1743924029797,0.33779219,592.08,591.17,0.28662697]
[1743924030103,0.29405924,592.03,591.17,0.28662697]
[1743924030397,0.29405924,592.03,591.16,0.506]
[1743924030600,0.29405924,592.03,591.17,0.28662595]
[1743924030801,0.698,592.02,591.17,0.28662595]
[1743924032602,0.738,592.01,591.17,0.28662595]
[1743924033102,0.738,592.01,591.16,0.506]
[1743924033303,0.738,592.01,591.17,0.28662624]
[1743924033803,0.738,592.01,591.16,0.506]
[1743924034001,0.738,592.01,591.17,0.28662568]
[1743924034500,0.738,592.01,591.16,0.506]
[1743924034703,0.738,592.01,591.18,0.28662562]
[1743924034899,0.738,592.01,591.19,0.28662562]
[1743924035103,0.738,592.01,591.2,0.62492061]
[1743924035405,0.738,592.01,591.21,0.62491489]
[1743924035706,0.738,592.01,591.22,0.62484528]
[1743924035898,0.738,592.01,591.23,0.62483956]
[1743924036103,0.738,592.01,591.24,0.62483384]
[1743924036404,0.738,592.01,591.25,0.62482812]
[1743924036604,0.738,592.01,591.26,0.6248224]
[1743924036905,0.738,592.01,591.27,0.62481668]
[1743924037105,0.738,592.01,591.28,0.28656174]
[1743924040213,0.738,592.01,591.29,0.28654652]
[1743924040514,0.738,592.01,591.3,0.28654652]
[1743924040713,0.738,592.01,591.31,0.28654652]
[1743924040914,0.738,592.01,591.28,0.28654652]
[1743924041110,0.738,592.01,591.29,0.28654652]
[1743924041414,0.738,592.01,591.3,0.28654652]
[1743924041613,0.738,592.01,591.31,0.28654652]
[1743924041817,0.738,592.01,591.32,0.28654652]
[1743924042018,0.738,592.01,591.33,0.28654652]
[1743924042212,0.738,592.01,591.3,0.066]
[1743924042412,0.738,592.01,591.31,0.28654049]
[1743924043721,0.738,592.01,591.3,0.066]
[1743924044020,0.738,592.01,591.31,0.28653921]
[1743924044520,0.738,592.01,591.3,0.066]
[1743924044720,0.698,592.02,591.31,0.28653951]
[1743924045520,0.698,592.02,591.32,0.33822634]
[1743924045816,0.698,592.02,591.33,0.28653951]
[1743924047020,0.698,592.02,591.34,0.62475441]
[1743924047217,0.603,592.01,591.35,0.62474869]
[1743924047421,0.603,592.01,591.36,0.28653951]
[1743924047622,0.603,592.01,591.37,0.33819774]
[1743924047917,0.603,592.01,591.38,0.28653951]
[1743924048118,0.603,592.01,591.39,0.3381863]
[1743924048321,0.603,592.01,591.4,0.28653951]
[1743924049222,0.603,592.01,591.41,0.33817487]
[1743924049522,0.603,592.01,591.42,0.28653951]
[1743924049723,0.603,592.01,591.43,0.62448005]
[1743924050023,0.603,592.01,591.44,0.62447433]
[1743924050322,0.603,592.01,591.45,0.62446861]
[1743924050522,0.603,592.01,591.46,0.28631662]
[1743924050723,0.603,592.01,591.46,1.2044629]
[1743924051019,0.603,592.01,591.47,0.28631662]
[1743924051224,0.603,592.01,591.48,0.33813484]
[1743924051421,0.603,592.01,591.49,0.28631662]
[1743924051622,0.603,592.01,591.5,0.33812341]
[1743924051822,0.603,592.01,591.51,0.28631662]
[1743924053826,0.603,592.01,591.5,0.33812341]
[1743924054321,0.603,592.01,591.51,0.28644743]
[1743924054521,0.603,592.01,591.5,0.33812341]
[1743924056626,0.603,592.01,591.51,0.28645016]
[1743924058226,0.701,592.0,591.51,0.28645016]
[1743924058826,0.701,592.0,591.5,0.33812341]
[1743924059024,0.701,592.0,591.51,0.28634868]
[1743924059629,0.701,592.0,591.5,0.33812341]
[1743924059824,0.701,592.0,591.52,0.28635802]
[1743924060025,0.701,592.0,591.53,0.28635802]
[1743924060226,0.701,592.0,591.54,0.28635802]
[1743924060424,0.701,592.0,591.51,0.28635802]
[1743924060724,0.701,592.0,591.52,0.28635802]
[1743924060924,0.701,592.0,591.51,0.28635802]
[1743924061128,0.701,592.0,591.52,0.28635802]
[1743924061329,0.701,592.0,591.51,0.28635802]
[1743924061829,0.701,592.0,591.5,0.33812341]
[1743924062029,0.701,592.0,591.51,0.28636499]
[1743924062923,0.718,591.99,591.5,0.33812341]
[1743924067331,0.718,591.99,591.51,0.066]
[1743924070438,0.718,591.99,591.52,0.509]
[1743924072739,0.718,591.99,591.53,0.28639134]
[1743924073235,0.718,591.99,591.52,0.509]
[1743924073639,0.718,591.99,591.53,0.28641233]
[1743924078539,0.718,591.99,591.52,0.509]
[1743924078739,0.718,591.99,591.54,0.28641574]
[1743924079041,0.718,591.99,591.55,0.28641574]
[1743924079441,0.718,591.99,591.56,0.28640151]
[1743924079744,0.718,591.99,591.53,0.28640151]
[1743924079943,0.718,591.99,591.54,0.28640151]
[1743924080244,0.718,591.99,591.55,0.28640151]
[1743924080446,0.718,591.99,591.56,0.2863845]
[1743924080743,0.718,591.99,591.53,0.2863845]
[1743924080940,0.718,591.99,591.54,0.2863845]
[1743924081139,0.718,591.99,591.55,0.2863845]
[1743924081445,0.718,591.99,591.56,0.2863845]
[1743924081747,0.718,591.99,591.57,0.2863845]
[1743924081944,0.718,591.99,591.53,0.2863845]
[1743924082140,0.718,591.99,591.54,0.2863845]
[1743924082443,0.718,591.99,591.55,0.2863845]
[1743924082641,0.718,591.99,591.56,0.2863845]
[1743924082839,0.718,591.99,591.57,0.2863845]
[1743924083044,0.718,591.99,591.53,0.2863845]
[1743924083239,0.718,591.99,591.54,0.2863845]
[1743924083440,0.718,591.99,591.55,0.2863845]
[1743924083642,0.718,591.99,591.53,0.2863845]
[1743924084347,0.718,591.99,591.52,0.509]
[1743924084545,0.718,591.99,591.54,0.28638481]
[1743924084746,0.718,591.99,591.52,0.509]
[1743924084747,0.718,591.99,591.55,0.28638481]
[1743924084942,0.718,591.99,591.56,0.28638481]
[1743924085147,0.718,591.99,591.57,0.28638481]
[1743924085347,0.718,591.99,591.53,0.28638481]
[1743924085545,0.718,591.99,591.54,0.28638481]
[1743924085743,0.718,591.99,591.53,0.28638481]
[1743924085948,0.718,591.99,591.54,0.28638481]
[1743924086149,0.718,591.99,591.53,0.28638481]
[1743924086447,0.718,591.99,591.54,0.28638481]
[1743924086650,0.718,591.99,591.52,0.509]
[1743924086651,0.718,591.99,591.53,0.28638481]
[1743924086853,0.718,591.99,591.54,0.28638481]
[1743924087146,0.718,591.99,591.55,0.28638481]
[1743924087351,0.718,591.99,591.53,0.28638481]
[1743924088552,0.718,591.99,591.52,0.509]
[1743924088752,0.718,591.99,591.53,0.28638715]
[1743924090452,0.718,591.99,591.53,0.35238715]
[1743924090648,0.718,591.99,591.53,0.066]
[1743924091055,0.29399838,592.18,591.53,0.066]
[1743924092354,0.29399838,592.18,591.54,0.28644231]
[1743924092754,1.51491679,592.8,591.54,0.28644231]
[1743924092954,0.33739329,592.78,591.54,0.28644231]
[1743924093154,0.31048481,592.77,591.54,0.28644231]
[1743924093354,0.31048481,592.77,591.53,0.066]
[1743924093654,0.585,592.76,591.53,0.066]
[1743924093854,0.33741606,592.74,591.53,0.066]
[1743924094055,0.31048481,592.73,591.53,0.066]
[1743924094254,0.33743314,592.71,591.53,0.066]
[1743924094458,0.31048481,592.7,591.53,0.066]
[1743924094649,0.33745022,592.68,591.53,0.066]
[1743924094950,0.31048481,592.67,591.53,0.066]
[1743924095254,0.3374673,592.65,591.53,0.066]
[1743924095458,0.31049551,592.64,591.53,0.066]
[1743924095652,0.33748439,592.62,591.53,0.066]
[1743924095856,0.31049551,592.61,591.53,0.066]
[1743924096051,0.86949551,592.61,591.53,0.066]
[1743924096250,0.33750147,592.59,591.53,0.066]
[1743924096554,0.31049551,592.58,591.53,0.066]
[1743924096755,0.33751856,592.56,591.53,0.066]
[1743924097153,0.31052656,592.55,591.53,0.066]
[1743924097351,0.33752995,592.54,591.53,0.066]
[1743924097550,0.31052656,592.53,591.53,0.066]
[1743924097753,0.33754134,592.52,591.53,0.066]
[1743924097955,0.31052656,592.51,591.53,0.066]
[1743924098156,0.33755274,592.5,591.53,0.066]
[1743924098357,0.31052656,592.49,591.53,0.066]
[1743924098551,0.33756413,592.48,591.53,0.066]
[1743924098756,0.31052656,592.47,591.53,0.066]
[1743924098953,0.33757553,592.46,591.53,0.066]
[1743924099355,0.31052656,592.45,591.53,0.066]
[1743924099556,0.33758692,592.44,591.53,0.066]
[1743924099851,0.31052656,592.43,591.53,0.066]
[1743924100056,0.33759832,592.42,591.53,0.066]
[1743924102156,0.31054435,592.41,591.53,0.066]
[1743924102458,0.33760972,592.4,591.53,0.066]
[1743924102658,0.31054435,592.39,591.53,0.066]
[1743924102958,0.60459365,592.39,591.53,0.066]
[1743924103158,0.31054435,592.38,591.53,0.066]
[1743924103558,0.33762682,592.37,591.53,0.066]
[1743924103756,0.64821574,592.37,591.53,0.589]
[1743924103957,0.31058892,592.36,591.53,0.589]
[1743924104257,0.33763822,592.35,591.53,0.589]
[1743924104452,0.31058892,592.34,591.53,0.589]
[1743924105459,0.31059986,592.33,591.53,0.589]
[1743924105655,0.31059986,592.32,591.53,0.589]
[1743924105860,0.31059986,592.31,591.53,0.589]
[1743924106058,0.33766672,592.3,591.53,0.589]
[1743924106261,0.31062031,592.29,591.53,0.589]
[1743924106458,0.33767812,592.28,591.53,0.589]
[1743924106658,0.31062031,592.27,591.53,0.589]
[1743924106858,0.33767812,592.28,591.53,0.589]
[1743924108966,0.29396237,592.27,591.53,0.589]
[1743924109366,0.63164619,592.27,591.53,0.589]
[1743924110861,0.33768382,592.27,591.53,0.589]
[1743924111065,0.29400459,592.26,591.53,0.589]
[1743924113669,0.33768382,592.27,591.53,0.589]
[1743924114071,0.29399217,592.25,591.53,0.589]
[1743924116772,0.33768382,592.27,591.53,0.589]
[1743924117974,0.29393133,592.26,591.53,0.589]
[1743924119075,0.71,592.25,591.53,0.589]
[1743924121070,0.29399465,592.24,591.53,0.589]
[1743924122674,0.71,592.25,591.53,0.589]
[1743924123075,0.29399465,592.23,591.53,0.589]
[1743924125777,0.71,592.25,591.53,0.589]
[1743924127177,0.29399465,592.24,591.53,0.589]
[1743924128879,0.71,592.25,591.53,0.589]
[1743924129078,0.29399465,592.23,591.53,0.589]
[1743924131775,0.71,592.25,591.53,0.589]
[1743924131973,0.33768382,592.27,591.53,0.589]
[1743924132174,0.31056278,592.26,591.53,0.589]
[1743924132680,0.33768382,592.27,591.53,0.589]
[1743924132978,0.29399217,592.25,591.53,0.589]
[1743924133479,0.31056216,592.24,591.53,0.589]
[1743924133678,0.29399217,592.25,591.53,0.589]
[1743924134878,0.33768382,592.27,591.53,0.589]
[1743924135080,0.31056216,592.26,591.53,0.589]
[1743924135282,0.31056216,592.25,591.53,0.589]
[1743924135579,0.33768382,592.27,591.53,0.589]
[1743924135881,0.31056216,592.26,591.53,0.589]
[1743924136078,0.60455433,592.26,591.53,0.589]
[1743924136276,0.31056216,592.25,591.53,0.589]
[1743924136781,0.29399217,592.26,591.53,0.589]
[1743924136982,0.31056216,592.25,591.53,0.589]
[1743924138178,0.33768382,592.27,591.53,0.589]
[1743924138382,0.31056162,592.26,591.53,0.589]
[1743924138682,0.648,592.25,591.53,0.589]
[1743924139081,0.94199217,592.25,591.53,0.589]
[1743924140783,0.648,592.25,591.53,0.589]
[1743924142082,0.29398223,592.24,591.53,0.589]
[1743924143783,0.648,592.25,591.53,0.589]
[1743924144982,0.29400086,592.24,591.53,0.589]
[1743924146387,0.33770663,592.23,591.53,0.589]
[1743924147881,0.29401204,592.22,591.53,0.589]
[1743924148285,0.67,592.21,591.53,0.589]
[1743924150888,0.29401949,592.2,591.53,0.589]
[1743924152786,0.67,592.21,591.53,0.589]
[1743924153991,0.29401949,592.2,591.53,0.589]
[1743924158794,0.67,592.21,591.53,0.589]
[1743924159988,0.29401949,592.2,591.53,0.589]
[1743924161791,0.33770663,592.23,591.53,0.589]
[1743924163095,0.29401452,592.22,591.53,0.589]
[1743924164696,0.33770663,592.23,591.53,0.589]
[1743924165897,0.29401452,592.22,591.53,0.589]
[1743924167299,0.31060786,592.21,591.53,0.589]
[1743924167995,0.31060786,592.22,591.53,0.589]
[1743924168199,0.33770663,592.23,591.53,0.589]
[1743924168399,0.31060848,592.22,591.53,0.589]
[1743924168601,0.33770663,592.23,591.53,0.589]
[1743924168900,0.31060842,592.22,591.53,0.589]
[1743924169101,0.60462294,592.22,591.53,0.589]
[1743924169395,0.31060842,592.21,591.53,0.589]
[1743924169598,0.29401452,592.22,591.53,0.589]
[1743924169796,0.31060462,592.2,591.53,0.589]
[1743924170001,0.31060462,592.19,591.53,0.589]
[1743924170198,0.31060462,592.21,591.53,0.589]
[1743924170703,0.33770663,592.23,591.53,0.589]
[1743924170902,0.31060335,592.22,591.53,0.589]
[1743924172004,0.29401701,592.21,591.53,0.589]
[1743924172503,0.31060782,592.2,591.53,0.589]
[1743924173605,0.29401701,592.21,591.53,0.589]
[1743924173804,0.33770663,592.23,591.53,0.589]
[1743924174806,0.617,592.22,591.53,0.589]
[1743924175101,0.91101452,592.22,591.53,0.589]
[1743924176804,0.617,592.22,591.53,0.589]
[1743924178008,0.29401825,592.21,591.53,0.589]
[1743924179811,0.617,592.22,591.53,0.589]
[1743924181111,0.29401825,592.21,591.53,0.589]
[1743924182812,0.617,592.22,591.53,0.589]
[1743924183010,0.31061065,592.21,591.53,0.589]
[1743924183512,0.617,592.22,591.53,0.589]
[1743924183714,0.31061622,592.21,591.53,0.589]
[1743924183908,0.76261622,592.21,591.53,0.589]
[1743924184112,0.31061622,592.2,591.53,0.589]
[1743924184514,0.74601825,592.21,591.53,0.589]
[1743924188716,0.452,592.21,591.53,0.589]
[1743924190020,0.29399341,592.2,591.53,0.589]
[1743924191925,0.452,592.21,591.53,0.589]
[1743924193026,0.29399341,592.2,591.53,0.589]
[1743924194830,0.452,592.21,591.53,0.589]
[1743924196130,0.29399341,592.2,591.53,0.589]
[1743924197830,0.452,592.21,591.53,0.589]
[1743924199233,0.29399341,592.2,591.53,0.589]
[1743924201036,0.452,592.21,591.53,0.589]
[1743924202138,0.29399341,592.2,591.53,0.589]
[1743924203736,0.452,592.21,591.53,0.589]
[1743924205040,0.29394995,592.2,591.53,0.589]
[1743924206740,0.452,592.21,591.53,0.589]
[1743924206940,0.3105796,592.2,591.53,0.589]
[1743924207540,0.452,592.21,591.53,0.589]
[1743924207741,0.31057814,592.2,591.53,0.589]
[1743924208038,0.60452933,592.2,591.53,0.589]
[1743924208243,0.29395119,592.2,591.53,0.589]
[1743924212849,0.452,592.21,591.53,0.589]
[1743924214045,0.2939425,592.2,591.53,0.589]
[1743924215752,0.452,592.21,591.53,0.589]
[1743924217048,0.29394375,592.2,591.53,0.589]
[1743924218844,0.452,592.21,591.53,0.589]
[1743924220145,0.29394375,592.2,591.53,0.589]
[1743924224851,0.452,592.21,591.53,0.589]
[1743924225350,0.29399217,592.19,591.53,0.589]
[1743924227745,0.452,592.21,591.53,0.589]
[1743924229253,0.29393133,592.2,591.53,0.589]
[1743924229948,0.85693133,592.2,591.53,0.589]
[1743924230753,0.563,592.2,591.53,0.589]
[1743924232049,0.29399217,592.19,591.53,0.589]
[1743924233855,0.563,592.2,591.53,0.589]
[1743924235349,0.29399217,592.19,591.53,0.589]
[1743924236756,0.563,592.2,591.53,0.589]
[1743924237051,0.29399341,592.18,591.53,0.589]
[1743924237356,0.65,592.17,591.53,0.589]
[1743924241054,0.29399714,592.16,591.53,0.589]
[1743924242760,0.65,592.17,591.53,0.589]
[1743924244164,0.29399714,592.16,591.53,0.589]
[1743924245861,0.65,592.17,591.53,0.589]
[1743924247064,0.29399465,592.16,591.53,0.589]
[1743924248865,0.65,592.17,591.53,0.589]
[1743924249262,0.29399465,592.15,591.53,0.589]
[1743924251865,0.65,592.17,591.53,0.589]
[1743924253362,0.29399465,592.16,591.53,0.589]
[1743924254866,0.65,592.17,591.53,0.589]
[1743924256167,0.29397975,592.16,591.53,0.589]
[1743924257868,0.65,592.17,591.53,0.589]
[1743924259070,0.29397727,592.16,591.53,0.589]
[1743924260875,0.65,592.17,591.53,0.589]
[1743924262068,0.29397727,592.16,591.53,0.589]
[1743924264074,0.65,592.17,591.53,0.589]
[1743924265170,0.29397727,592.16,591.53,0.589]
[1743924266871,0.65,592.17,591.53,0.589]
[1743924268077,0.29397727,592.16,591.53,0.589]
[1743924269778,0.65,592.17,591.53,0.589]
[1743924271176,0.29397727,592.16,591.53,0.589]
[1743924272879,0.65,592.17,591.53,0.589]
[1743924273485,0.29397727,592.16,591.53,0.589]
[1743924275781,0.65,592.17,591.53,0.589]
[1743924280490,0.477,592.16,591.53,0.589]
[1743924292199,0.29398969,592.15,591.53,0.589]
[1743924293804,0.477,592.16,591.53,0.589]
[1743924295505,0.29398969,592.15,591.53,0.589]
[1743924296899,0.477,592.16,591.53,0.589]
[1743924298106,0.29391644,592.15,591.53,0.589]
[1743924299307,0.733,592.14,591.53,0.589]
[1743924301101,0.29399341,592.13,591.53,0.589]
[1743924302807,0.733,592.14,591.53,0.589]
[1743924304108,0.29399341,592.13,591.53,0.589]
[1743924305905,0.733,592.14,591.53,0.589]
[1743924307110,0.29399341,592.13,591.53,0.589]
[1743924315022,0.733,592.14,591.53,0.589]
[1743924316217,0.29399093,592.13,591.53,0.589]
[1743924317825,1.51491679,592.66,591.53,0.589]
[1743924318021,0.337473,592.64,591.53,0.589]
[1743924318224,0.31053992,592.63,591.53,0.589]
[1743924318425,0.33748439,592.62,591.53,0.589]
[1743924318628,0.31053992,592.61,591.53,0.589]
[1743924318826,0.33749578,592.6,591.53,0.589]
[1743924319127,0.31053992,592.59,591.53,0.589]
[1743924319327,0.33750717,592.58,591.53,0.589]
[1743924319823,0.31054053,592.57,591.53,0.589]
[1743924320029,0.33751856,592.56,591.53,0.589]
[1743924320224,0.31054053,592.55,591.53,0.589]
[1743924321129,0.7,592.54,591.53,0.589]
[1743924321330,0.31054053,592.53,591.53,0.589]
[1743924321531,0.33754134,592.52,591.53,0.589]
[1743924321731,0.31054053,592.51,591.53,0.589]
[1743924321932,0.33755274,592.5,591.53,0.589]
[1743924322132,0.31054053,592.49,591.53,0.589]
[1743924322334,0.33756413,592.48,591.53,0.589]
[1743924322533,0.31054053,592.47,591.53,0.589]
[1743924322738,0.33757553,592.46,591.53,0.589]
[1743924323034,0.31054053,592.45,591.53,0.589]
[1743924323636,0.33758692,592.44,591.53,0.589]
[1743924323833,0.31054053,592.43,591.53,0.589]
[1743924324033,0.33759832,592.42,591.53,0.589]
[1743924324233,0.31054053,592.41,591.53,0.589]
[1743924324434,0.33760972,592.4,591.53,0.589]
[1743924324729,0.31054053,592.39,591.53,0.589]
[1743924324931,0.33762112,592.38,591.53,0.589]
[1743924326337,0.717,592.37,591.53,0.589]
[1743924328143,0.29398223,592.36,591.53,0.589]
[1743924329943,0.717,592.37,591.53,0.589]
[1743924330544,0.33763252,592.36,591.53,0.589]
[1743924330738,0.31059558,592.35,591.53,0.589]
[1743924330943,0.33764392,592.34,591.53,0.589]
[1743924331142,0.31059558,592.33,591.53,0.589]
[1743924331343,0.33765532,592.32,591.53,0.589]
[1743924331542,0.31059558,592.31,591.53,0.589]
[1743924334545,0.33765532,592.32,591.53,0.589]
[1743924334744,0.31059577,592.31,591.53,0.589]
[1743924337146,0.29400335,592.3,591.53,0.589]
[1743924337346,0.31059577,592.29,591.53,0.589]
[1743924337942,0.29400335,592.3,591.53,0.589]
[1743924338142,0.31059823,592.29,591.53,0.589]
[1743924339047,0.31059823,592.31,591.53,0.589]
[1743924339242,0.31059823,592.3,591.53,0.589]
[1743924339443,0.31059823,592.31,591.53,0.589]
[1743924339747,0.31059787,592.3,591.53,0.589]
[1743924339947,0.31059787,592.31,591.53,0.589]
[1743924340247,0.29400335,592.29,591.53,0.589]
[1743924340547,0.31059819,592.28,591.53,0.589]
[1743924342050,0.31059819,592.31,591.53,0.589]
[1743924342251,0.33765532,592.32,591.53,0.589]
[1743924342252,0.31059819,592.3,591.53,0.589]
[1743924342452,0.31059819,592.31,591.53,0.589]
[1743924343152,0.29400335,592.3,591.53,0.589]
[1743924343451,0.31059819,592.29,591.53,0.589]
[1743924344550,0.29400335,592.3,591.53,0.589]
[1743924344756,0.31059787,592.28,591.53,0.589]
[1743924344954,0.33765532,592.32,591.53,0.589]
[1743924345150,0.29400335,592.29,591.53,0.589]
[1743924345450,0.31059843,592.28,591.53,0.589]
[1743924347258,0.29400335,592.29,591.53,0.589]
[1743924347858,0.33765532,592.32,591.53,0.589]
[1743924348060,0.31058961,592.31,591.53,0.589]
[1743924349060,0.29400335,592.3,591.53,0.589]
[1743924350159,0.31059259,592.29,591.53,0.589]
[1743924351162,0.31059259,592.31,591.53,0.589]
[1743924351862,0.33765532,592.32,591.53,0.589]
[1743924352164,0.29398223,592.3,591.53,0.589]
[1743924352464,0.31057357,592.29,591.53,0.589]
[1743924352863,0.808,592.28,591.53,0.589]
[1743924354862,0.31057171,592.27,591.53,0.589]
[1743924355163,0.60455767,592.27,591.53,0.589]
[1743924355466,0.31057171,592.26,591.53,0.589]
[1743924357166,0.808,592.28,591.53,0.589]
[1743924357464,0.31057195,592.27,591.53,0.589]
[1743924357670,0.808,592.28,591.53,0.589]
[1743924358168,0.29398596,592.27,591.53,0.589]
[1743924360069,0.808,592.28,591.53,0.589]
[1743924360470,0.29398596,592.26,591.53,0.589]
[1743924362870,0.808,592.28,591.53,0.589]
[1743924364078,0.29398596,592.27,591.53,0.589]
[1743924365877,0.808,592.28,591.53,0.589]
[1743924366576,0.684,592.27,591.53,0.589]
[1743924367076,0.2939872,592.26,591.53,0.589]
[1743924367677,0.31057727,592.25,591.53,0.589]
[1743924369077,0.31057727,592.26,591.53,0.589]
[1743924369577,0.684,592.27,591.53,0.589]
[1743924369774,0.31057699,592.26,591.53,0.589]
[1743924370174,0.60456419,592.26,591.53,0.589]
[1743924370378,0.31057699,592.25,591.53,0.589]
[1743924371179,0.2939872,592.26,591.53,0.589]
[1743924371880,0.684,592.27,591.53,0.589]
[1743924372074,0.31057977,592.26,591.53,0.589]
[1743924373275,0.2939872,592.25,591.53,0.589]
[1743924374981,0.684,592.27,591.53,0.589]
[1743924375181,0.31058018,592.26,591.53,0.589]
[1743924376182,0.2940021,592.25,591.53,0.589]
[1743924376382,0.31058018,592.24,591.53,0.589]
[1743924378082,0.31058018,592.26,591.53,0.589]
[1743924379184,0.2940021,592.25,591.53,0.589]
[1743924379385,0.31058018,592.24,591.53,0.589]
[1743924381586,0.2940021,592.25,591.53,0.589]
[1743924381887,0.31059128,592.24,591.53,0.589]
[1743924382985,0.2940021,592.25,591.53,0.589]
[1743924383885,0.684,592.27,591.53,0.589]
[1743924384685,0.808,592.28,591.53,0.589]
[1743924385285,0.2940108,592.27,591.53,0.589]
[1743924386990,0.808,592.28,591.53,0.589]
[1743924388187,0.2940108,592.27,591.53,0.589]
[1743924389890,0.808,592.28,591.53,0.589]
[1743924390191,0.2940108,592.26,591.53,0.589]
[1743924392892,0.3106104,592.25,591.53,0.589]
[1743924393086,0.3106104,592.27,591.53,0.589]
[1743924393391,0.64829422,592.27,591.53,0.589]
[1743924393586,0.64829992,592.26,591.53,0.589]
[1743924393789,0.33769523,592.25,591.53,0.589]
[1743924394087,0.31066326,592.24,591.53,0.589]
[1743924394291,0.33770663,592.23,591.53,0.589]
[1743924397297,0.29404806,592.22,591.53,0.589]
[1743924397498,0.33771803,592.21,591.53,0.589]
[1743924399497,0.718,592.2,591.53,0.589]
[1743924399698,0.33772944,592.19,591.53,0.589]
[1743924400199,0.60471889,592.18,591.53,0.589]
[1743924400398,0.31066089,592.17,591.53,0.589]
[1743924400999,0.33774655,592.16,591.53,0.589]
[1743924401499,0.31066089,592.15,591.53,0.589]
[1743924403298,0.29406297,592.14,591.53,0.589]
[1743924403799,0.31066934,592.13,591.53,0.589]
[1743924405101,0.33774655,592.16,591.53,0.589]
[1743924405299,0.31066872,592.15,591.53,0.589]
[1743924406203,0.29406297,592.14,591.53,0.589]
[1743924406403,0.31066872,592.13,591.53,0.589]
[1743924406903,0.29406297,592.14,591.53,0.589]
[1743924407100,0.31066903,592.13,591.53,0.589]